{"text_format":"1","workbook":"xlsx","n_sheets":20,"sheets":["シート目次","参加費申込","監督・コーチ・従事者","形申込1(小学生男子)","形申込2(小学生女子)","形申込3(中学生男子)","形申込4(中学生女子)","形申込5(少年男子18歳以下・女子18歳以下)","形申込6(一般男子・女子)","形申込7(50歳以上男子・40歳以上女子)","組手申込1(小学生男子)","組手申込2(小学生女子)","組手申込3(中学生男子)","組手申込4(中学生女子)","組手申込5(少年男子18歳以下・女子18歳以下)","組手申込6(一般男子・女子)","団体組手申込","国名","都道府県名","段位"],"not_rendered":{"charts":0,"images":0,"macros":1,"external_links":0,"defined_names":17,"comments":1,"pivot_tables":0},"unopened":[],"bounds":{"document_bytes":16777216,"sheet_cells":100000,"rows_first":2000,"rows_last":500,"rows_between":2000,"halvings":0,"cell_chars":16384,"cell_head_chars":4096},"cells_cut":0,"cells_raw":0,"read":"whole","date_system":"1900"}

{"sheet":"シート目次","index":0,"n_rows":19,"n_cols":5,"rows_kept":19,"cut":false,"hidden":false,"merged":[[2,0,2,3],[2,4,2,9],[3,0,3,3],[3,4,3,9],[4,0,4,3],[4,4,4,9],[5,0,5,3],[5,4,5,9],[6,0,6,3],[6,4,6,9],[7,0,7,3],[7,4,7,9],[8,0,8,3],[8,4,8,9],[9,0,9,3],[9,4,9,9],[10,0,10,3],[10,4,10,9],[11,0,11,3],[11,4,11,9],[12,0,12,3],[12,4,12,9],[13,0,13,3],[13,4,13,9],[17,0,17,3],[17,4,17,9],[18,0,18,3],[18,4,18,9],[14,0,14,3],[14,4,14,9],[15,0,15,3],[15,4,15,9],[16,0,16,3],[16,4,16,9]]}
["目次"]
[]
["シート目次 ・・・・・",null,null,null,"-"]
["参加費申込 ・・・・・",null,null,null,"参加申込、申込費用についてはこちらを参照ください。"]
["監督・コーチ・従事者 ・・・・・",null,null,null,"参加される監督、コーチ、従事者の申込はこちらを参照ください。"]
["形申込1(小学生男子) ・・・・・",null,null,null,"「形競技」「個人」に参加される選手の申込はこちらを参照ください。"]
["形申込2(小学生女子) ・・・・・",null,null,null,"「形競技」「個人」に参加される選手の申込はこちらを参照ください。"]
["形申込3(中学生男子) ・・・・・",null,null,null,"「形競技」「個人」に参加される選手の申込はこちらを参照ください。"]
["形申込4(中学生女子) ・・・・・",null,null,null,"「形競技」「個人」に参加される選手の申込はこちらを参照ください。"]
["形申込5(少年男子18歳以下・女子18歳以下) ・・・・・",null,null,null,"「形競技」「個人」に参加される選手の申込はこちらを参照ください。"]
["形申込6(一般男子・女子) ・・・・・",null,null,null,"「形競技」「個人」に参加される選手の申込はこちらを参照ください。"]
["形申込7(50歳以上男子・40歳以上女子)・・・・・",null,null,null,"「形競技」「個人」に参加される選手の申込はこちらを参照ください。"]
["組手申込1(小学生男子) ・・・・・",null,null,null,"「組手競技」「個人」参加される選手の申込はこちらを参照ください。"]
["組手申込2(小学生女子) ・・・・・",null,null,null,"「組手競技」「個人」参加される選手の申込はこちらを参照ください。"]
["組手申込3(中学生男子) ・・・・・",null,null,null,"「組手競技」「個人」参加される選手の申込はこちらを参照ください。"]
["組手申込4(中学生女子) ・・・・・",null,null,null,"「組手競技」「個人」参加される選手の申込はこちらを参照ください。"]
["組手申込5(少年男子18歳以下・女子18歳以下) ・・・・・",null,null,null,"「組手競技」「個人」参加される選手の申込はこちらを参照ください。"]
["組手申込6(一般男子・女子) ・・・・・",null,null,null,"「組手競技」「個人」参加される選手の申込はこちらを参照ください。"]
["団体組手申込・・・・・",null,null,null,"「組手競技」「団体」参加される選手の申込はこちらを参照ください。"]

{"sheet":"参加費申込","index":1,"n_rows":51,"n_cols":8,"rows_kept":51,"cut":false,"hidden":false,"merged":[[41,0,41,7],[42,0,42,7],[49,2,49,7],[12,0,18,0],[19,0,21,0],[43,0,45,0],[47,0,49,0],[44,2,44,3],[44,5,44,7],[45,2,45,7],[47,2,47,7],[48,2,48,3],[48,5,48,7],[35,2,35,7],[36,2,36,7],[37,2,37,7],[17,2,17,7],[18,2,18,7],[19,2,19,7],[21,2,21,7],[20,2,20,3],[20,5,20,7],[1,0,1,7],[11,0,11,7],[3,0,3,7],[25,0,25,7],[33,0,33,7],[27,0,27,7],[4,0,4,1],[5,0,5,1],[6,0,6,1],[7,0,7,1],[8,0,8,1],[28,0,28,1],[29,0,29,1],[30,0,30,1],[12,5,12,7],[13,2,13,7],[46,0,46,7],[23,0,23,7],[9,4,9,5],[31,4,31,5],[38,0,38,1],[38,2,38,7],[37,0,37,1],[39,0,39,1],[35,0,35,1],[36,0,36,1],[14,2,14,7],[15,2,15,7],[16,2,16,7],[12,2,12,3],[39,2,39,7],[43,2,43,7]]}
["目次に戻る"]
["大 会 参 加 費 ・ 保 険 料"]
[]
["支 払 内 訳 書"]
["内 容",null,"単 位",null,"人 数 等",null,"金 額"]
["形競技参加費",null,3000,"x",{"$f":"SUM('形申込1(小学生男子)'!E38, '形申込2(小学生女子)'!E38, '形申込3(中学生男子)'!E38, '形申込4(中学生女子)'!E38, '形申込5(少年男子18歳以下・女子18歳以下)'!E38, '形申込6(一般男子・女子)'!E38, '形申込7(50歳以上男子・40歳以上女子)'!E38)","v":0},"=",{"$f":"(C6*E6)","v":0},"円"]
["組手競技参加費",null,3000,"x",{"$f":"SUM('組手申込1(小学生男子)'!E38, '組手申込2(小学生女子)'!E38, '組手申込3(中学生男子)'!E38, '組手申込4(中学生女子)'!E38, '組手申込5(少年男子18歳以下・女子18歳以下)'!E38, '組手申込6(一般男子・女子)'!E38)","v":0},"=",{"$f":"(C7*E7)","v":0},"円"]
["団体競技参加費",null,10000,"x",{"$f":"IF(COUNTBLANK(団体組手申込!D14:D29)=16,0,1)","v":0},"=",0,"円"]
["選手保険料",null,300,"x",0,"=",0,"円"]
[null,null,null,null,"支払金額合計",null,{"$f":"SUM(G6:G9)","v":0},"円"]
[]
["大 会 参 加 費 ・ 保 険 料 振込先"]
["申込責任者","国名",null,null,"都道府県名"]
[null,"〒"]
[null,"住所"]
[null,"氏名"]
[null,"電話番号"]
[null,"携帯番号"]
[null,"E-MAIL"]
["振込先","金融機関名","沖 縄 銀 行   若 松 支 店"]
[null,"口座","普通口座",null,"番号","1 3 2 3 7 4 4"]
[null,"名義","知 念   慎"]
["※大会参加費・保険料は ６月１６日（日） 〆切厳守でお願いいたします。"]
[]
[]
["広 告 費"]
[]
["支 払 内 訳"]
["広告費A",null,30000,"x",null,"=",{"$f":"(C29*E29)","v":0},"円"]
["広告費B",null,50000,"x",null,"=",{"$f":"(C30*E30)","v":0},"円"]
["広告費C",null,100000,"x",null,"=",{"$f":"(C31*E31)","v":0},"円"]
[null,null,null,null,"支払金額合計",null,{"$f":"SUM(G29:G31)","v":0},"円"]
[]
["協 賛 金"]
[]
["御芳名"]
["会社名"]
["道場名"]
["〒"]
["住所"]
[]
["広 告 費 ・ 協 賛 金 振 込 先"]
["ゆうちょ銀行からの御振込は下記 振込先１ をご利用ください。"]
["振込先１","金融機関名","ゆ う ち ょ 銀 行"]
[null,"記号","1 7 0 3 0",null,"番号","1 9 7 9 2 1 2 1"]
[null,"名義","ヤ マ カ ワ   ヒ ト シ"]
["他の金融機関からの御振込は下記 振込先 ２ をご利用ください。"]
["振込先２","金融機関名","ゆ う ち ょ 銀 行"]
[null,"預金名目","普 通 預 金",null,"口座番号","1 9 7 9 2 1 2"]
[null,"名義","ヤ マ カ ワ   ヒ ト シ"]
["※広告費・協賛費は ６月９日（日） までにお願い致します。"]

{"sheet":"監督・コーチ・従事者","index":2,"n_rows":23,"n_cols":7,"rows_kept":23,"cut":false,"hidden":false,"merged":[[6,0,6,6],[2,0,2,6],[3,0,3,6],[5,0,5,6],[4,0,4,6]]}
["目次に戻る"]
[]
[]
["第５０回記念 全日本空手道連盟剛柔会"]
["全国空手道選手権大会申込書"]
[]
["監督・コーチ・従事者"]
[]
[]
[]
[null,"会員番号","氏","名","剛柔会","審判講習会","受講会場"]
[null,null,null,null,"組手審判資格","受講日"]
["manage","member_id","last_name","first_name","licence","course_date","course_place"]
["監督"]
["コーチ"]
["コーチ"]
["コーチ"]
["コーチ"]
["コーチ"]
["注意 : 太枠の範囲をご記入ください"]
[]
["重要 : 提出者名以外は従事できないことご留意ください"]
["重要 : コーチは１６歳以上で審判講習会（全国・地区・支部開催）の受講者に限ります"]

{"sheet":"形申込1(小学生男子)","index":3,"n_rows":38,"n_cols":11,"rows_kept":38,"cut":false,"hidden":false,"merged":[[2,0,2,10],[3,0,3,10],[5,0,5,1]]}
["目次に戻る",null,null,null,null,null,null,null,null,null,"形 ― １"]
[]
["第５０回記念 全日本空手道連盟剛柔会"]
["全国空手道選手権大会申込書"]
[]
["形競技１枚目"]
[]
["国名",{"$f":"IF(参加費申込!C13=\"\",\"\", 参加費申込!C13)","v":""}]
["都道府県名",{"$f":"IF(参加費申込!F13=\"\",\"\", 参加費申込!F13)","v":""}]
[]
["種目",null,null,"会員番号","氏",null,"名",null,"年齢","段位","ゼッケン"]
[null,null,null,null,null,"フリガナ",null,"フリガナ"]
["event","class","event_id","member_id","last_name","last_ruby","first_name","first_ruby","age","rank","number"]
["小学生男子","1年生",1,null,null,null,null,null,null,null,"(入力不要)"]
["小学生男子","1年生",1,null,null,null,null,null,null,null,"(入力不要)"]
["小学生男子","1年生",1,null,null,null,null,null,null,null,"(入力不要)"]
["小学生男子","1年生",1,null,null,null,null,null,null,null,"(入力不要)"]
["小学生男子","2年生",2,null,null,null,null,null,null,null,"(入力不要)"]
["小学生男子","2年生",2,null,null,null,null,null,null,null,"(入力不要)"]
["小学生男子","2年生",2,null,null,null,null,null,null,null,"(入力不要)"]
["小学生男子","2年生",2,null,null,null,null,null,null,null,"(入力不要)"]
["小学生男子","3年生",3,null,null,null,null,null,null,null,"(入力不要)"]
["小学生男子","3年生",3,null,null,null,null,null,null,null,"(入力不要)"]
["小学生男子","3年生",3,null,null,null,null,null,null,null,"(入力不要)"]
["小学生男子","3年生",3,null,null,null,null,null,null,null,"(入力不要)"]
["小学生男子","4年生",4,null,null,null,null,null,null,null,"(入力不要)"]
["小学生男子","4年生",4,null,null,null,null,null,null,null,"(入力不要)"]
["小学生男子","4年生",4,null,null,null,null,null,null,null,"(入力不要)"]
["小学生男子","4年生",4,null,null,null,null,null,null,null,"(入力不要)"]
["小学生男子","5年生",5,null,null,null,null,null,null,null,"(入力不要)"]
["小学生男子","5年生",5,null,null,null,null,null,null,null,"(入力不要)"]
["小学生男子","5年生",5,null,null,null,null,null,null,null,"(入力不要)"]
["小学生男子","5年生",5,null,null,null,null,null,null,null,"(入力不要)"]
["小学生男子","6年生",6,null,null,null,null,null,null,null,"(入力不要)"]
["小学生男子","6年生",6,null,null,null,null,null,null,null,"(入力不要)"]
["小学生男子","6年生",6,null,null,null,null,null,null,null,"(入力不要)"]
["小学生男子","6年生",6,null,null,null,null,null,null,null,"(入力不要)"]
["注意 : 太枠の範囲をご記入ください",null,null,null,{"$f":"SUMPRODUCT(--SIGN(MMULT(N(D14:H37<>\"\"),TRANSPOSE(COLUMN(D14:H37)^0))))","v":0}]

{"sheet":"形申込2(小学生女子)","index":4,"n_rows":38,"n_cols":11,"rows_kept":38,"cut":false,"hidden":false,"merged":[[2,0,2,10],[3,0,3,10],[5,0,5,1]]}
["目次に戻る",null,null,null,null,null,null,null,null,null,"形 ― ２"]
[]
["第５０回記念 全日本空手道連盟剛柔会"]
["全国空手道選手権大会申込書"]
[]
["形競技２枚目"]
[]
["国名",{"$f":"IF(参加費申込!C13=\"\",\"\", 参加費申込!C13)","v":""}]
["都道府県名",{"$f":"IF(参加費申込!F13=\"\",\"\", 参加費申込!F13)","v":""}]
[]
["種目",null,null,"会員番号","氏",null,"名",null,"年齢","段位","ゼッケン"]
[null,null,null,null,null,"フリガナ",null,"フリガナ"]
["event","class","event_id","member_id","last_name","last_ruby","first_name","first_ruby","age","rank","number"]
["小学生女子","1年生",7,null,null,null,null,null,null,null,"(入力不要)"]
["小学生女子","1年生",7,null,null,null,null,null,null,null,"(入力不要)"]
["小学生女子","1年生",7,null,null,null,null,null,null,null,"(入力不要)"]
["小学生女子","1年生",7,null,null,null,null,null,null,null,"(入力不要)"]
["小学生女子","2年生",8,null,null,null,null,null,null,null,"(入力不要)"]
["小学生女子","2年生",8,null,null,null,null,null,null,null,"(入力不要)"]
["小学生女子","2年生",8,null,null,null,null,null,null,null,"(入力不要)"]
["小学生女子","2年生",8,null,null,null,null,null,null,null,"(入力不要)"]
["小学生女子","3年生",9,null,null,null,null,null,null,null,"(入力不要)"]
["小学生女子","3年生",9,null,null,null,null,null,null,null,"(入力不要)"]
["小学生女子","3年生",9,null,null,null,null,null,null,null,"(入力不要)"]
["小学生女子","3年生",9,null,null,null,null,null,null,null,"(入力不要)"]
["小学生女子","4年生",10,null,null,null,null,null,null,null,"(入力不要)"]
["小学生女子","4年生",10,null,null,null,null,null,null,null,"(入力不要)"]
["小学生女子","4年生",10,null,null,null,null,null,null,null,"(入力不要)"]
["小学生女子","4年生",10,null,null,null,null,null,null,null,"(入力不要)"]
["小学生女子","5年生",11,null,null,null,null,null,null,null,"(入力不要)"]
["小学生女子","5年生",11,null,null,null,null,null,null,null,"(入力不要)"]
["小学生女子","5年生",11,null,null,null,null,null,null,null,"(入力不要)"]
["小学生女子","5年生",11,null,null,null,null,null,null,null,"(入力不要)"]
["小学生女子","6年生",12,null,null,null,null,null,null,null,"(入力不要)"]
["小学生女子","6年生",12,null,null,null,null,null,null,null,"(入力不要)"]
["小学生女子","6年生",12,null,null,null,null,null,null,null,"(入力不要)"]
["小学生女子","6年生",12,null,null,null,null,null,null,null,"(入力不要)"]
["注意 : 太枠の範囲をご記入ください",null,null,null,{"$f":"SUMPRODUCT(--SIGN(MMULT(N(D14:H37<>\"\"),TRANSPOSE(COLUMN(D14:H37)^0))))","v":0}]

{"sheet":"形申込3(中学生男子)","index":5,"n_rows":38,"n_cols":11,"rows_kept":38,"cut":false,"hidden":false,"merged":[[2,0,2,10],[3,0,3,10],[5,0,5,1]]}
["目次に戻る",null,null,null,null,null,null,null,null,null,"形 ― ３"]
[]
["第５０回記念 全日本空手道連盟剛柔会"]
["全国空手道選手権大会申込書"]
[]
["形競技３枚目"]
[]
["国名",{"$f":"IF(参加費申込!C13=\"\",\"\", 参加費申込!C13)","v":""}]
["都道府県名",{"$f":"IF(参加費申込!F13=\"\",\"\", 参加費申込!F13)","v":""}]
[]
["種目",null,null,"会員番号","氏",null,"名",null,"年齢","段位","ゼッケン"]
[null,null,null,null,null,"フリガナ",null,"フリガナ"]
["event","class","event_id","member_id","last_name","last_ruby","first_name","first_ruby","age","rank","number"]
["中学生男子","1年生",13,null,null,null,null,null,null,null,"(入力不要)"]
["中学生男子","1年生",13,null,null,null,null,null,null,null,"(入力不要)"]
["中学生男子","1年生",13,null,null,null,null,null,null,null,"(入力不要)"]
["中学生男子","1年生",13,null,null,null,null,null,null,null,"(入力不要)"]
["中学生男子","2年生",14,null,null,null,null,null,null,null,"(入力不要)"]
["中学生男子","2年生",14,null,null,null,null,null,null,null,"(入力不要)"]
["中学生男子","2年生",14,null,null,null,null,null,null,null,"(入力不要)"]
["中学生男子","2年生",14,null,null,null,null,null,null,null,"(入力不要)"]
["中学生男子","3年生",15,null,null,null,null,null,null,null,"(入力不要)"]
["中学生男子","3年生",15,null,null,null,null,null,null,null,"(入力不要)"]
["中学生男子","3年生",15,null,null,null,null,null,null,null,"(入力不要)"]
["中学生男子","3年生",15,null,null,null,null,null,null,null,"(入力不要)"]
[]
[]
[]
[]
[]
[]
[]
[]
[]
[]
[]
[]
["注意 : 太枠の範囲をご記入ください",null,null,null,{"$f":"SUMPRODUCT(--SIGN(MMULT(N(D14:H37<>\"\"),TRANSPOSE(COLUMN(D14:H37)^0))))","v":0}]

{"sheet":"形申込4(中学生女子)","index":6,"n_rows":38,"n_cols":11,"rows_kept":38,"cut":false,"hidden":false,"merged":[[2,0,2,10],[3,0,3,10],[5,0,5,1]]}
["目次に戻る",null,null,null,null,null,null,null,null,null,"形 ― ４"]
[]
["第５０回記念 全日本空手道連盟剛柔会"]
["全国空手道選手権大会申込書"]
[]
["形競技４枚目"]
[]
["国名",{"$f":"IF(参加費申込!C13=\"\",\"\", 参加費申込!C13)","v":""}]
["都道府県名",{"$f":"IF(参加費申込!F13=\"\",\"\", 参加費申込!F13)","v":""}]
[]
["種目",null,null,"会員番号","氏",null,"名",null,"年齢","段位","ゼッケン"]
[null,null,null,null,null,"フリガナ",null,"フリガナ"]
["event","class","event_id","member_id","last_name","last_ruby","first_name","first_ruby","age","rank","number"]
["中学生女子","1年生",16,null,null,null,null,null,null,null,"(入力不要)"]
["中学生女子","1年生",16,null,null,null,null,null,null,null,"(入力不要)"]
["中学生女子","1年生",16,null,null,null,null,null,null,null,"(入力不要)"]
["中学生女子","1年生",16,null,null,null,null,null,null,null,"(入力不要)"]
["中学生女子","2年生",17,null,null,null,null,null,null,null,"(入力不要)"]
["中学生女子","2年生",17,null,null,null,null,null,null,null,"(入力不要)"]
["中学生女子","2年生",17,null,null,null,null,null,null,null,"(入力不要)"]
["中学生女子","2年生",17,null,null,null,null,null,null,null,"(入力不要)"]
["中学生女子","3年生",18,null,null,null,null,null,null,null,"(入力不要)"]
["中学生女子","3年生",18,null,null,null,null,null,null,null,"(入力不要)"]
["中学生女子","3年生",18,null,null,null,null,null,null,null,"(入力不要)"]
["中学生女子","3年生",18,null,null,null,null,null,null,null,"(入力不要)"]
["中学生女子"]
["中学生女子"]
["中学生女子"]
["中学生女子"]
["中学生女子"]
["中学生女子"]
["中学生女子"]
["中学生女子"]
["中学生女子"]
["中学生女子"]
["中学生女子"]
["中学生女子"]
["注意 : 太枠の範囲をご記入ください",null,null,null,{"$f":"SUMPRODUCT(--SIGN(MMULT(N(D14:H37<>\"\"),TRANSPOSE(COLUMN(D14:H37)^0))))","v":0}]

{"sheet":"形申込5(少年男子18歳以下・女子18歳以下)","index":7,"n_rows":38,"n_cols":11,"rows_kept":38,"cut":false,"hidden":false,"merged":[[2,0,2,10],[3,0,3,10],[5,0,5,1]]}
["目次に戻る",null,null,null,null,null,null,null,null,null,"形 ― ５"]
[]
["第５０回記念 全日本空手道連盟剛柔会"]
["全国空手道選手権大会申込書"]
[]
["形競技５枚目"]
[]
["国名",{"$f":"IF(参加費申込!C13=\"\",\"\", 参加費申込!C13)","v":""}]
["都道府県名",{"$f":"IF(参加費申込!F13=\"\",\"\", 参加費申込!F13)","v":""}]
[]
["種目",null,null,"会員番号","氏",null,"名",null,"年齢","段位","ゼッケン"]
[null,null,null,null,null,"フリガナ",null,"フリガナ"]
["event","class","event_id","member_id","last_name","last_ruby","first_name","first_ruby","age","rank","number"]
["少年男子","18歳以下",19,null,null,null,null,null,null,null,"(入力不要)"]
["少年男子","18歳以下",19,null,null,null,null,null,null,null,"(入力不要)"]
["少年男子","18歳以下",19,null,null,null,null,null,null,null,"(入力不要)"]
["少年男子","18歳以下",19,null,null,null,null,null,null,null,"(入力不要)"]
["少年女子","18歳以下",20,null,null,null,null,null,null,null,"(入力不要)"]
["少年女子","18歳以下",20,null,null,null,null,null,null,null,"(入力不要)"]
["少年女子","18歳以下",20,null,null,null,null,null,null,null,"(入力不要)"]
["少年女子","18歳以下",20,null,null,null,null,null,null,null,"(入力不要)"]
[]
[]
[]
[]
[]
[]
[]
[]
[]
[]
[]
[]
[]
[]
[]
[]
["注意 : 太枠の範囲をご記入ください",null,null,null,{"$f":"SUMPRODUCT(--SIGN(MMULT(N(D14:H37<>\"\"),TRANSPOSE(COLUMN(D14:H37)^0))))","v":0}]

{"sheet":"形申込6(一般男子・女子)","index":8,"n_rows":38,"n_cols":11,"rows_kept":38,"cut":false,"hidden":false,"merged":[[2,0,2,10],[3,0,3,10],[5,0,5,1]]}
["目次に戻る",null,null,null,null,null,null,null,null,null,"形 ― ６"]
[]
["第５０回記念 全日本空手道連盟剛柔会"]
["全国空手道選手権大会申込書"]
[]
["形競技６枚目"]
[]
["国名",{"$f":"IF(参加費申込!C13=\"\",\"\", 参加費申込!C13)","v":""}]
["都道府県名",{"$f":"IF(参加費申込!F13=\"\",\"\", 参加費申込!F13)","v":""}]
[]
["種目",null,null,"会員番号","氏",null,"名",null,"年齢","段位","ゼッケン"]
[null,null,null,null,null,"フリガナ",null,"フリガナ"]
["event","class","event_id","member_id","last_name","last_ruby","first_name","first_ruby","age","rank","number"]
["一般男子","-",21,null,null,null,null,null,null,null,"(入力不要)"]
["一般男子","-",21,null,null,null,null,null,null,null,"(入力不要)"]
["一般女子","-",22,null,null,null,null,null,null,null,"(入力不要)"]
["一般女子","-",22,null,null,null,null,null,null,null,"(入力不要)"]
[]
[]
[]
[]
[]
[]
[]
[]
[]
[]
[]
[]
[]
[]
[]
[]
[]
[]
[]
[]
["注意 : 太枠の範囲をご記入ください",null,null,null,{"$f":"SUMPRODUCT(--SIGN(MMULT(N(D14:H37<>\"\"),TRANSPOSE(COLUMN(D14:H37)^0))))","v":0}]

{"sheet":"形申込7(50歳以上男子・40歳以上女子)","index":9,"n_rows":38,"n_cols":11,"rows_kept":38,"cut":false,"hidden":false,"merged":[[2,0,2,10],[3,0,3,10],[5,0,5,1]]}
["目次に戻る",null,null,null,null,null,null,null,null,null,"形 ― ７"]
[]
["第５０回記念 全日本空手道連盟剛柔会"]
["全国空手道選手権大会申込書"]
[]
["形競技７枚目"]
[]
["国名",{"$f":"IF(参加費申込!C13=\"\",\"\", 参加費申込!C13)","v":""}]
["都道府県名",{"$f":"IF(参加費申込!F13=\"\",\"\", 参加費申込!F13)","v":""}]
[]
["種目",null,null,"会員番号","氏",null,"名",null,"年齢","段位","ゼッケン"]
[null,null,null,null,null,"フリガナ",null,"フリガナ"]
["event","class","event_id","member_id","last_name","last_ruby","first_name","first_ruby","age","rank","number"]
["50歳以上男子","-",23,null,null,null,null,null,null,null,"(入力不要)"]
["50歳以上男子","-",23,null,null,null,null,null,null,null,"(入力不要)"]
["50歳以上男子","-",23,null,null,null,null,null,null,null,"(入力不要)"]
["50歳以上男子","-",23,null,null,null,null,null,null,null,"(入力不要)"]
["50歳以上男子","-",23,null,null,null,null,null,null,null,"(入力不要)"]
["50歳以上男子","-",23,null,null,null,null,null,null,null,"(入力不要)"]
["50歳以上男子","-",23,null,null,null,null,null,null,null,"(入力不要)"]
["50歳以上男子","-",23,null,null,null,null,null,null,null,"(入力不要)"]
["40歳以上女子","-",24,null,null,null,null,null,null,null,"(入力不要)"]
["40歳以上女子","-",24,null,null,null,null,null,null,null,"(入力不要)"]
["40歳以上女子","-",24,null,null,null,null,null,null,null,"(入力不要)"]
["40歳以上女子","-",24,null,null,null,null,null,null,null,"(入力不要)"]
["40歳以上女子","-",24,null,null,null,null,null,null,null,"(入力不要)"]
["40歳以上女子","-",24,null,null,null,null,null,null,null,"(入力不要)"]
["40歳以上女子","-",24,null,null,null,null,null,null,null,"(入力不要)"]
["40歳以上女子","-",24,null,null,null,null,null,null,null,"(入力不要)"]
[]
[]
[]
[]
[]
[]
[]
[]
["注意 : 太枠の範囲をご記入ください",null,null,null,{"$f":"SUMPRODUCT(--SIGN(MMULT(N(D14:H37<>\"\"),TRANSPOSE(COLUMN(D14:H37)^0))))","v":0}]

{"sheet":"組手申込1(小学生男子)","index":10,"n_rows":38,"n_cols":11,"rows_kept":38,"cut":false,"hidden":false,"merged":[[2,0,2,10],[3,0,3,10],[5,0,5,1]]}
["目次に戻る",null,null,null,null,null,null,null,null,null,"組手 ― １"]
[]
["第５０回記念 全日本空手道連盟剛柔会"]
["全国空手道選手権大会申込書"]
[]
["組手競技１枚目"]
[]
["国名",{"$f":"IF(参加費申込!C13=\"\",\"\", 参加費申込!C13)","v":""}]
["都道府県名",{"$f":"IF(参加費申込!F13=\"\",\"\", 参加費申込!F13)","v":""}]
[]
["種目",null,null,"会員番号","氏",null,"名",null,"年齢","段位","ゼッケン"]
[null,null,null,null,null,"フリガナ",null,"フリガナ"]
["event","class","event_id","member_id","last_name","last_ruby","first_name","first_ruby","age","rank","number"]
["小学生男子","1年生",25,null,null,null,null,null,null,null,"(入力不要)"]
["小学生男子","1年生",25,null,null,null,null,null,null,null,"(入力不要)"]
["小学生男子","1年生",25,null,null,null,null,null,null,null,"(入力不要)"]
["小学生男子","1年生",25,null,null,null,null,null,null,null,"(入力不要)"]
["小学生男子","2年生",26,null,null,null,null,null,null,null,"(入力不要)"]
["小学生男子","2年生",26,null,null,null,null,null,null,null,"(入力不要)"]
["小学生男子","2年生",26,null,null,null,null,null,null,null,"(入力不要)"]
["小学生男子","2年生",26,null,null,null,null,null,null,null,"(入力不要)"]
["小学生男子","3年生",27,null,null,null,null,null,null,null,"(入力不要)"]
["小学生男子","3年生",27,null,null,null,null,null,null,null,"(入力不要)"]
["小学生男子","3年生",27,null,null,null,null,null,null,null,"(入力不要)"]
["小学生男子","3年生",27,null,null,null,null,null,null,null,"(入力不要)"]
["小学生男子","4年生",28,null,null,null,null,null,null,null,"(入力不要)"]
["小学生男子","4年生",28,null,null,null,null,null,null,null,"(入力不要)"]
["小学生男子","4年生",28,null,null,null,null,null,null,null,"(入力不要)"]
["小学生男子","4年生",28,null,null,null,null,null,null,null,"(入力不要)"]
["小学生男子","5年生",29,null,null,null,null,null,null,null,"(入力不要)"]
["小学生男子","5年生",29,null,null,null,null,null,null,null,"(入力不要)"]
["小学生男子","5年生",29,null,null,null,null,null,null,null,"(入力不要)"]
["小学生男子","5年生",29,null,null,null,null,null,null,null,"(入力不要)"]
["小学生男子","6年生",30,null,null,null,null,null,null,null,"(入力不要)"]
["小学生男子","6年生",30,null,null,null,null,null,null,null,"(入力不要)"]
["小学生男子","6年生",30,null,null,null,null,null,null,null,"(入力不要)"]
["小学生男子","6年生",30,null,null,null,null,null,null,null,"(入力不要)"]
["注意 : 太枠の範囲をご記入ください",null,null,null,{"$f":"SUMPRODUCT(--SIGN(MMULT(N(D14:H37<>\"\"),TRANSPOSE(COLUMN(D14:H37)^0))))","v":0}]

{"sheet":"組手申込2(小学生女子)","index":11,"n_rows":38,"n_cols":11,"rows_kept":38,"cut":false,"hidden":false,"merged":[[2,0,2,10],[3,0,3,10],[5,0,5,1]]}
["目次に戻る",null,null,null,null,null,null,null,null,null,"組手 ― ２"]
[]
["第５０回記念 全日本空手道連盟剛柔会"]
["全国空手道選手権大会申込書"]
[]
["組手競技２枚目"]
[]
["国名",{"$f":"IF(参加費申込!C13=\"\",\"\", 参加費申込!C13)","v":""}]
["都道府県名",{"$f":"IF(参加費申込!F13=\"\",\"\", 参加費申込!F13)","v":""}]
[]
["種目",null,null,"会員番号","氏",null,"名",null,"年齢","段位","ゼッケン"]
[null,null,null,null,null,"フリガナ",null,"フリガナ"]
["event","class","event_id","member_id","last_name","last_ruby","first_name","first_ruby","age","rank","number"]
["小学生女子","1年生",31,null,null,null,null,null,null,null,"(入力不要)"]
["小学生女子","1年生",31,null,null,null,null,null,null,null,"(入力不要)"]
["小学生女子","1年生",31,null,null,null,null,null,null,null,"(入力不要)"]
["小学生女子","1年生",31,null,null,null,null,null,null,null,"(入力不要)"]
["小学生女子","2年生",32,null,null,null,null,null,null,null,"(入力不要)"]
["小学生女子","2年生",32,null,null,null,null,null,null,null,"(入力不要)"]
["小学生女子","2年生",32,null,null,null,null,null,null,null,"(入力不要)"]
["小学生女子","2年生",32,null,null,null,null,null,null,null,"(入力不要)"]
["小学生女子","3年生",33,null,null,null,null,null,null,null,"(入力不要)"]
["小学生女子","3年生",33,null,null,null,null,null,null,null,"(入力不要)"]
["小学生女子","3年生",33,null,null,null,null,null,null,null,"(入力不要)"]
["小学生女子","3年生",33,null,null,null,null,null,null,null,"(入力不要)"]
["小学生女子","4年生",34,null,null,null,null,null,null,null,"(入力不要)"]
["小学生女子","4年生",34,null,null,null,null,null,null,null,"(入力不要)"]
["小学生女子","4年生",34,null,null,null,null,null,null,null,"(入力不要)"]
["小学生女子","4年生",34,null,null,null,null,null,null,null,"(入力不要)"]
["小学生女子","5年生",35,null,null,null,null,null,null,null,"(入力不要)"]
["小学生女子","5年生",35,null,null,null,null,null,null,null,"(入力不要)"]
["小学生女子","5年生",35,null,null,null,null,null,null,null,"(入力不要)"]
["小学生女子","5年生",35,null,null,null,null,null,null,null,"(入力不要)"]
["小学生女子","6年生",36,null,null,null,null,null,null,null,"(入力不要)"]
["小学生女子","6年生",36,null,null,null,null,null,null,null,"(入力不要)"]
["小学生女子","6年生",36,null,null,null,null,null,null,null,"(入力不要)"]
["小学生女子","6年生",36,null,null,null,null,null,null,null,"(入力不要)"]
["注意 : 太枠の範囲をご記入ください",null,null,null,{"$f":"SUMPRODUCT(--SIGN(MMULT(N(D14:H37<>\"\"),TRANSPOSE(COLUMN(D14:H37)^0))))","v":0}]

{"sheet":"組手申込3(中学生男子)","index":12,"n_rows":38,"n_cols":11,"rows_kept":38,"cut":false,"hidden":false,"merged":[[2,0,2,10],[3,0,3,10],[5,0,5,1]]}
["目次に戻る",null,null,null,null,null,null,null,null,null,"組手 ― ３"]
[]
["第５０回記念 全日本空手道連盟剛柔会"]
["全国空手道選手権大会申込書"]
[]
["組手競技３枚目"]
[]
["国名",{"$f":"IF(参加費申込!C13=\"\",\"\", 参加費申込!C13)","v":""}]
["都道府県名",{"$f":"IF(参加費申込!F13=\"\",\"\", 参加費申込!F13)","v":""}]
[]
["種目",null,null,"会員番号","氏",null,"名",null,"年齢","段位","ゼッケン"]
[null,null,null,null,null,"フリガナ",null,"フリガナ"]
["event","class","event_id","member_id","last_name","last_ruby","first_name","first_ruby","age","rank","number"]
["中学生男子","1年生",37,null,null,null,null,null,null,null,"(入力不要)"]
["中学生男子","1年生",37,null,null,null,null,null,null,null,"(入力不要)"]
["中学生男子","1年生",37,null,null,null,null,null,null,null,"(入力不要)"]
["中学生男子","1年生",37,null,null,null,null,null,null,null,"(入力不要)"]
["中学生男子","2年生",38,null,null,null,null,null,null,null,"(入力不要)"]
["中学生男子","2年生",38,null,null,null,null,null,null,null,"(入力不要)"]
["中学生男子","2年生",38,null,null,null,null,null,null,null,"(入力不要)"]
["中学生男子","2年生",38,null,null,null,null,null,null,null,"(入力不要)"]
["中学生男子","3年生",39,null,null,null,null,null,null,null,"(入力不要)"]
["中学生男子","3年生",39,null,null,null,null,null,null,null,"(入力不要)"]
["中学生男子","3年生",39,null,null,null,null,null,null,null,"(入力不要)"]
["中学生男子","3年生",39,null,null,null,null,null,null,null,"(入力不要)"]
[]
[]
[]
[]
[]
[]
[]
[]
[]
[]
[]
[]
["注意 : 太枠の範囲をご記入ください",null,null,null,{"$f":"SUMPRODUCT(--SIGN(MMULT(N(D14:H37<>\"\"),TRANSPOSE(COLUMN(D14:H37)^0))))","v":0}]

{"sheet":"組手申込4(中学生女子)","index":13,"n_rows":38,"n_cols":11,"rows_kept":38,"cut":false,"hidden":false,"merged":[[2,0,2,10],[3,0,3,10],[5,0,5,1]]}
["目次に戻る",null,null,null,null,null,null,null,null,null,"組手 ― ４"]
[]
["第５０回記念 全日本空手道連盟剛柔会"]
["全国空手道選手権大会申込書"]
[]
["組手競技４枚目"]
[]
["国名",{"$f":"IF(参加費申込!C13=\"\",\"\", 参加費申込!C13)","v":""}]
["都道府県名",{"$f":"IF(参加費申込!F13=\"\",\"\", 参加費申込!F13)","v":""}]
[]
["種目",null,null,"会員番号","氏",null,"名",null,"年齢","段位","ゼッケン"]
[null,null,null,null,null,"フリガナ",null,"フリガナ"]
["event","class","event_id","member_id","last_name","last_ruby","first_name","first_ruby","age","rank","number"]
["中学生女子","1年生",40,null,null,null,null,null,null,null,"(入力不要)"]
["中学生女子","1年生",40,null,null,null,null,null,null,null,"(入力不要)"]
["中学生女子","1年生",40,null,null,null,null,null,null,null,"(入力不要)"]
["中学生女子","1年生",40,null,null,null,null,null,null,null,"(入力不要)"]
["中学生女子","2年生",41,null,null,null,null,null,null,null,"(入力不要)"]
["中学生女子","2年生",41,null,null,null,null,null,null,null,"(入力不要)"]
["中学生女子","2年生",41,null,null,null,null,null,null,null,"(入力不要)"]
["中学生女子","2年生",41,null,null,null,null,null,null,null,"(入力不要)"]
["中学生女子","3年生",42,null,null,null,null,null,null,null,"(入力不要)"]
["中学生女子","3年生",42,null,null,null,null,null,null,null,"(入力不要)"]
["中学生女子","3年生",42,null,null,null,null,null,null,null,"(入力不要)"]
["中学生女子","3年生",42,null,null,null,null,null,null,null,"(入力不要)"]
[]
[]
[]
[]
[]
[]
[]
[]
[]
[]
[]
[]
["注意 : 太枠の範囲をご記入ください",null,null,null,{"$f":"SUMPRODUCT(--SIGN(MMULT(N(D14:H37<>\"\"),TRANSPOSE(COLUMN(D14:H37)^0))))","v":0}]

{"sheet":"組手申込5(少年男子18歳以下・女子18歳以下)","index":14,"n_rows":38,"n_cols":11,"rows_kept":38,"cut":false,"hidden":false,"merged":[[2,0,2,10],[3,0,3,10],[5,0,5,1]]}
["目次に戻る",null,null,null,null,null,null,null,null,null,"組手 ― ５"]
[]
["第５０回記念 全日本空手道連盟剛柔会"]
["全国空手道選手権大会申込書"]
[]
["組手競技５枚目"]
[]
["国名",{"$f":"IF(参加費申込!C13=\"\",\"\", 参加費申込!C13)","v":""}]
["都道府県名",{"$f":"IF(参加費申込!F13=\"\",\"\", 参加費申込!F13)","v":""}]
[]
["種目",null,null,"会員番号","氏",null,"名",null,"年齢","段位","ゼッケン"]
[null,null,null,null,null,"フリガナ",null,"フリガナ"]
["event","class","event_id","member_id","last_name","last_ruby","first_name","first_ruby","age","rank","number"]
["少年男子","18歳以下",43,null,null,null,null,null,null,null,"(入力不要)"]
["少年男子","18歳以下",43,null,null,null,null,null,null,null,"(入力不要)"]
["少年男子","18歳以下",43,null,null,null,null,null,null,null,"(入力不要)"]
["少年男子","18歳以下",43,null,null,null,null,null,null,null,"(入力不要)"]
["少年女子","18歳以下",44,null,null,null,null,null,null,null,"(入力不要)"]
["少年女子","18歳以下",44,null,null,null,null,null,null,null,"(入力不要)"]
["少年女子","18歳以下",44,null,null,null,null,null,null,null,"(入力不要)"]
["少年女子","18歳以下",44,null,null,null,null,null,null,null,"(入力不要)"]
[]
[]
[]
[]
[]
[]
[]
[]
[]
[]
[]
[]
[]
[]
[]
[]
["注意 : 太枠の範囲をご記入ください",null,null,null,{"$f":"SUMPRODUCT(--SIGN(MMULT(N(D14:H37<>\"\"),TRANSPOSE(COLUMN(D14:H37)^0))))","v":0}]

{"sheet":"組手申込6(一般男子・女子)","index":15,"n_rows":38,"n_cols":11,"rows_kept":38,"cut":false,"hidden":false,"merged":[[2,0,2,10],[3,0,3,10],[5,0,5,1]]}
["目次に戻る",null,null,null,null,null,null,null,null,null,"組手 ― ６"]
[]
["第５０回記念 全日本空手道連盟剛柔会"]
["全国空手道選手権大会申込書"]
[]
["組手競技６枚目"]
[]
["国名",{"$f":"IF(参加費申込!C13=\"\",\"\", 参加費申込!C13)","v":""}]
["都道府県名",{"$f":"IF(参加費申込!F13=\"\",\"\", 参加費申込!F13)","v":""}]
[]
["種目",null,null,"会員番号","氏",null,"名",null,"年齢","段位","ゼッケン"]
[null,null,null,null,null,"フリガナ",null,"フリガナ"]
["event","class","event_id","member_id","last_name","last_ruby","first_name","first_ruby","age","rank","number"]
["一般男子(軽量)","65kg未満",45,null,null,null,null,null,null,null,"(入力不要)"]
["一般男子(軽量)","65kg未満",45,null,null,null,null,null,null,null,"(入力不要)"]
["一般男子(中量)","75kg未満",46,null,null,null,null,null,null,null,"(入力不要)"]
["一般男子(中量)","75kg未満",46,null,null,null,null,null,null,null,"(入力不要)"]
["一般男子(重量)","75kg以上",47,null,null,null,null,null,null,null,"(入力不要)"]
["一般男子(重量)","75kg以上",47,null,null,null,null,null,null,null,"(入力不要)"]
["一般男子(無差別)","-",48,null,null,null,null,null,null,null,"(入力不要)"]
["一般男子(無差別)","-",48,null,null,null,null,null,null,null,"(入力不要)"]
["一般女子","55kg未満",49,null,null,null,null,null,null,null,"(入力不要)"]
["一般女子","55kg未満",49,null,null,null,null,null,null,null,"(入力不要)"]
["一般女子","55kg未満",49,null,null,null,null,null,null,null,"(入力不要)"]
["一般女子","55kg未満",49,null,null,null,null,null,null,null,"(入力不要)"]
["一般女子","55kg未満",49,null,null,null,null,null,null,null,"(入力不要)"]
["一般女子","55kg未満",49,null,null,null,null,null,null,null,"(入力不要)"]
["一般女子","55kg未満",49,null,null,null,null,null,null,null,"(入力不要)"]
["一般女子","55kg未満",49,null,null,null,null,null,null,null,"(入力不要)"]
["一般女子","55kg以上",50,null,null,null,null,null,null,null,"(入力不要)"]
["一般女子","55kg以上",50,null,null,null,null,null,null,null,"(入力不要)"]
["一般女子","55kg以上",50,null,null,null,null,null,null,null,"(入力不要)"]
["一般女子","55kg以上",50,null,null,null,null,null,null,null,"(入力不要)"]
["一般女子","55kg以上",50,null,null,null,null,null,null,null,"(入力不要)"]
["一般女子","55kg以上",50,null,null,null,null,null,null,null,"(入力不要)"]
["一般女子","55kg以上",50,null,null,null,null,null,null,null,"(入力不要)"]
["一般女子","55kg以上",50,null,null,null,null,null,null,null,"(入力不要)"]
["注意 : 太枠の範囲をご記入ください",null,null,null,{"$f":"SUMPRODUCT(--SIGN(MMULT(N(D14:H37<>\"\"),TRANSPOSE(COLUMN(D14:H37)^0))))","v":0}]

{"sheet":"団体組手申込","index":16,"n_rows":38,"n_cols":11,"rows_kept":38,"cut":false,"hidden":false,"merged":[[2,0,2,10],[3,0,3,10],[5,0,5,1]]}
["目次に戻る",null,null,null,null,null,null,null,null,null,"団体組手"]
[]
["第５０回記念 全日本空手道連盟剛柔会"]
["全国空手道選手権大会申込書"]
[]
["団体組手競技"]
[]
["国名",{"$f":"IF(参加費申込!C13=\"\",\"\", 参加費申込!C13)","v":""}]
["都道府県名",{"$f":"IF(参加費申込!F13=\"\",\"\", 参加費申込!F13)","v":""}]
[]
["チーム",null,null,"会員番号","氏",null,"名",null,"年齢","段位","ゼッケン"]
[null,null,null,null,null,"フリガナ",null,"フリガナ"]
["team","team_role","event_id","member_id","last_name","last_ruby","first_name","first_ruby","age","rank","number"]
["Aチーム","監督",51,null,null,null,null,null,null,null,"(入力不要)"]
["Aチーム","選手１",51,null,null,null,null,null,null,null,"(入力不要)"]
["Aチーム","選手２",51,null,null,null,null,null,null,null,"(入力不要)"]
["Aチーム","選手３",51,null,null,null,null,null,null,null,"(入力不要)"]
["Aチーム","選手４",51,null,null,null,null,null,null,null,"(入力不要)"]
["Aチーム","選手５",51,null,null,null,null,null,null,null,"(入力不要)"]
["Aチーム","選手６",51,null,null,null,null,null,null,null,"(入力不要)"]
["Aチーム","選手７",51,null,null,null,null,null,null,null,"(入力不要)"]
["Bチーム","監督",51,null,null,null,null,null,null,null,"(入力不要)"]
["Bチーム","選手１",51,null,null,null,null,null,null,null,"(入力不要)"]
["Bチーム","選手２",51,null,null,null,null,null,null,null,"(入力不要)"]
["Bチーム","選手３",51,null,null,null,null,null,null,null,"(入力不要)"]
["Bチーム","選手４",51,null,null,null,null,null,null,null,"(入力不要)"]
["Bチーム","選手５",51,null,null,null,null,null,null,null,"(入力不要)"]
["Bチーム","選手６",51,null,null,null,null,null,null,null,"(入力不要)"]
["Bチーム","選手７",51,null,null,null,null,null,null,null,"(入力不要)"]
[]
[]
[]
[]
[]
[]
[]
[]
["注意 : 太枠の範囲をご記入ください",null,null,null,{"$f":"SUMPRODUCT(--SIGN(MMULT(N(D14:H37<>\"\"),TRANSPOSE(COLUMN(D14:H37)^0))))","v":0}]

{"sheet":"国名","index":17,"n_rows":33,"n_cols":1,"rows_kept":33,"cut":false,"hidden":true,"merged":[]}
["日本"]
["アメリカ合衆国"]
["イギリス"]
["ブラジル"]
["フランス"]
["カナダ"]
["オーストラリア"]
["ドイツ"]
["イタリア"]
["スペイン"]
["ロシア"]
["メキシコ"]
["アルゼンチン"]
["チリ"]
["ペルー"]
["中国"]
["韓国"]
["タイ"]
["フィリピン"]
["インドネシア"]
["マレーシア"]
["シンガポール"]
["ベトナム"]
["インド"]
["パキスタン"]
["トルコ"]
["エジプト"]
["南アフリカ"]
["ケニア"]
["モロッコ"]
["アルジェリア"]
["チュニジア"]
["ニュージーランド"]

{"sheet":"都道府県名","index":18,"n_rows":47,"n_cols":1,"rows_kept":47,"cut":false,"hidden":true,"merged":[]}
["北海道"]
["青森県"]
["岩手県"]
["宮城県"]
["秋田県"]
["山形県"]
["福島県"]
["茨城県"]
["栃木県"]
["群馬県"]
["埼玉県"]
["千葉県"]
["東京都"]
["神奈川県"]
["新潟県"]
["富山県"]
["石川県"]
["福井県"]
["山梨県"]
["長野県"]
["岐阜県"]
["静岡県"]
["愛知県"]
["三重県"]
["滋賀県"]
["京都府"]
["大阪府"]
["兵庫県"]
["奈良県"]
["和歌山県"]
["鳥取県"]
["島根県"]
["岡山県"]
["広島県"]
["山口県"]
["徳島県"]
["香川県"]
["愛媛県"]
["高知県"]
["福岡県"]
["佐賀県"]
["長崎県"]
["熊本県"]
["大分県"]
["宮崎県"]
["鹿児島県"]
["沖縄県"]

{"sheet":"段位","index":19,"n_rows":20,"n_cols":1,"rows_kept":20,"cut":false,"hidden":true,"merged":[]}
["10級"]
["9級"]
["8級"]
["7級"]
["6級"]
["5級"]
["4級"]
["3級"]
["2級"]
["1級"]
["初段"]
["弐段"]
["参段"]
["四段"]
["五段"]
["六段"]
["七段"]
["八段"]
["九段"]
["十段"]